bitfinex-derivatives/quotes_SOLF0:USTF0_20241015
["timestamp","ask_amount","ask_price","bid_price","bid_amount"]
[1729024110785,5.4,153.72,153.6,35.16619602]
[1729024111194,33.68695428,153.73,153.6,35.16619602]
[1729024111392,3.2531,153.71,153.68,3.2536]
[1729024111697,33.68695428,153.73,153.64,5.4]
[1729024113485,3.2532,153.7,153.67,3.2537]
[1729024116901,3.253,153.72,153.68,3.2535]
[1729024118100,3.253,153.71,153.68,3.2535]
[1729024118593,30.42,153.73,153.64,5.4]
[1729024118898,5.4,153.75,153.65,26.454]
[1729024119109,8.60607954,153.77,153.68,25.02]
[1729024119400,11.85797954,153.77,153.73,3.2525]
[1729024119604,8.60607954,153.77,153.73,3.2525]
[1729024119786,3.2521,153.76,153.73,3.2525]
[1729024120191,8.60607954,153.77,153.69,1.3185]
[1729024120402,3.2522,153.75,153.72,3.2527]
[1729024121304,25.02,153.76,153.66,1.4199]
[1729024121496,26.3484,153.76,153.66,6.8199]
[1729024121692,3.253,153.72,153.68,3.2535]
[1729024122394,3.253,153.72,153.69,3.2534]
[1729024122595,3.2534,153.69,153.66,6.8199]
[1729024123401,3.2534,153.69,153.67,3.2537]
[1729024123803,3.2533,153.7,153.67,3.2537]
[1729024124194,30.42,153.73,153.66,10.0738]
[1729024124902,3.2534,153.69,153.66,4.6738]
[1729024125602,25.02,153.68,153.64,3.2543]
[1729024125808,15.63,153.66,153.61,5.38]
[1729024126300,15.63,153.64,153.59,2.7938]
[1729024126499,15.63,153.64,153.59,6.7761]
[1729024126703,15.63,153.62,153.6,3.2553]
[1729024129298,15.63,153.62,153.59,1.3761]
[1729024129299,21.03,153.65,153.59,1.3761]
[1729024129812,21.03,153.65,153.62,3.2548]
[1729024130507,21.03,153.65,153.59,1.3761]
[1729024130698,21.03,153.65,153.61,3.255]
[1729024131710,3.2545,153.64,153.61,3.255]
[1729024132606,21.03,153.65,153.59,1.3761]
[1729024133005,3.2546,153.64,153.6,3.2552]
[1729024133203,3.2546,153.64,153.59,1.3761]
[1729024133913,3.2546,153.64,153.61,3.2551]
[1729024135305,5.4,153.65,153.63,3.2546]
[1729024135519,21.03,153.67,153.59,1.3761]
[1729024135809,3.2541,153.66,153.63,3.2546]
[1729024136404,24.27868063,153.67,153.63,3.2546]
[1729024136609,3.2544,153.65,153.62,3.2549]
[1729024138215,3.2544,153.65,153.63,3.2547]
[1729024139808,24.27868063,153.67,153.59,1.3761]
[1729024140012,15.63,153.65,153.59,1.3761]
[1729024140514,3.2547,153.64,153.61,3.255]
[1729024141402,3.2547,153.64,153.6,3.2552]
[1729024141607,3.2547,153.64,153.59,1.3761]
[1729024142008,3.2547,153.64,153.61,3.2549]
[1729024143311,15.63,153.65,153.59,1.3761]
[1729024143512,3.2548,153.63,153.6,3.2552]
[1729024144216,15.63,153.65,153.6,3.2552]
[1729024144718,15.63,153.62,153.55,1.3917]
[1729024144913,3.2554,153.6,153.55,1.3917]
[1729024145917,3.2554,153.6,153.56,3.2561]
[1729024146118,3.2554,153.6,153.55,1.3917]
[1729024147519,5.38,153.62,153.6,3.2552]
[1729024147721,5.38,153.65,153.56,18.91709131]
[1729024147924,5.38,153.65,153.57,6.7913]
[1729024148225,3.2547,153.64,153.57,6.7913]
[1729024148626,3.2546,153.64,153.61,3.255]
[1729024149126,3.2546,153.64,153.57,6.7913]
[1729024149127,8.6343,153.65,153.62,3.2548]
[1729024149622,5.38,153.65,153.62,3.2548]
[1729024150418,3.2546,153.64,153.61,3.255]
[1729024152624,21.01,153.65,153.57,6.7913]
[1729024152837,3.255,153.62,153.59,3.2553]
[1729024153019,21.01,153.61,153.53,1.3675]
[1729024153325,3.2561,153.57,153.54,3.2565]
[1729024154122,15.63,153.59,153.34,32.6084]
[1729024154325,15.63,153.59,153.16,309.47077522]
[1729024154326,15.63,153.51,153.39,18.3366]
[1729024154524,5.38,153.5,153.39,18.3366]
[1729024154716,3.2579,153.48,153.39,18.3366]
[1729024154920,5.38,153.5,153.39,18.3366]
[1729024155115,5.38,153.5,153.46,3.2582]
[1729024155323,5.38,153.5,153.42,15.63]
[1729024155324,8.6375,153.5,153.42,15.63]
[1729024155729,5.38,153.5,153.45,3.2585]
[1729024155918,3.2578,153.49,153.45,3.2585]
[1729024156119,15.63,153.53,153.42,15.63]
[1729024156318,5.38,153.52,153.42,15.63]
[1729024156524,3.2572,153.51,153.47,3.2579]
[1729024156725,8.6372,153.51,153.47,3.2579]
[1729024157234,8.6372,153.51,153.42,15.63]
[1729024157235,3.2575,153.5,153.42,15.63]
[1729024158023,8.6373,153.51,153.46,3.2583]
[1729024159432,8.6373,153.51,153.47,3.2581]
[1729024162533,3.2574,153.5,153.47,3.2581]
[1729024164225,8.6373,153.51,153.48,3.2578]
[1729024167633,3.2575,153.5,153.47,3.258]
[1729024167840,5.38,153.52,153.45,15.63]
[1729024168134,5.38,153.52,153.46,1.4354]
[1729024168338,5.38,153.52,153.49,3.2575]
[1729024168539,8.68650417,153.52,153.49,3.2575]
[1729024168941,5.38,153.52,153.49,3.2575]
[1729024169140,8.57994786,153.52,153.49,3.2575]
[1729024169643,11.83704786,153.52,153.49,3.2575]
[1729024170541,8.6371,153.52,153.47,1.3316]
[1729024170743,8.6371,153.52,153.5,3.2574]
[1729024171345,5.38,153.52,153.5,3.2574]
[1729024174540,8.60666517,153.52,153.47,4.5896]
[1729024174943,3.2576,153.5,153.47,4.5896]
[1729024175241,15.63,153.49,153.45,3.2584]
[1729024175443,15.63,153.49,153.41,2.6769]
[1729024175643,5.38,153.48,153.43,3.2588]
[1729024175834,5.38,153.48,153.38,4.0974]
[1729024176038,3.2585,153.45,153.38,4.0974]
[1729024176535,15.63,153.46,153.41,3.2592]
[1729024176849,15.63,153.46,153.38,4.0974]
[1729024177349,18.81915924,153.46,153.38,4.0974]
[1729024178352,3.2593,153.42,153.38,4.0974]
[1729024179053,5.38,153.44,153.41,3.2593]
[1729024179250,5.38,153.44,153.38,2.7352]
[1729024180354,5.38,153.44,153.41,3.2592]
[1729024180552,5.38,153.45,153.39,15.63]
[1729024180753,5.38,153.45,153.39,16.9876]
[1729024180953,5.38,153.45,153.43,3.2588]
[1729024181952,8.6383,153.46,153.43,3.2588]
[1729024184661,5.38,153.46,153.39,16.9876]
[1729024186054,5.38,153.46,153.44,3.2586]
[1729024186863,3.2582,153.47,153.44,3.2586]
[1729024187163,5.38,153.46,153.44,3.2586]
[1729024187764,3.2579,153.48,153.45,3.2583]
[1729024187961,8.68964797,153.47,153.39,16.9876]
[1729024188558,3.2585,153.45,153.42,3.259]
[1729024188762,8.68964797,153.47,153.42,3.259]
[1729024189262,3.2587,153.45,153.42,3.259]
[1729024189962,3.2587,153.45,153.43,3.2589]
[1729024190164,3.2583,153.46,153.39,16.9876]
[1729024190459,3.2583,153.46,153.43,3.2588]
[1729024197762,3.2583,153.46,153.41,10.01]
[1729024198463,3.2583,153.46,153.44,3.2587]
[1729024198663,5.38,153.47,153.41,10.01]
[1729024198873,18.6481,153.47,153.41,10.01]
[1729024199169,21.9880689,153.47,153.41,10.01]
[1729024199778,21.9880689,153.47,153.44,3.2586]
[1729024200064,3.2585,153.45,153.41,10.01]
[1729024200273,10.01,153.42,153.39,3.2596]
[1729024200467,10.01,153.42,153.38,2.7352]
[1729024200866,3.2595,153.41,153.38,5.995]
[1729024201066,3.3399689,153.47,153.39,10.01]
[1729024201268,3.3399689,153.47,153.38,2.7352]
[1729024201269,3.2586,153.45,153.4,10.01]
[1729024201469,5.38,153.45,153.42,10.01]
[1729024201969,5.38,153.47,153.45,3.2585]
[1729024202370,5.38,153.47,153.41,15.64]
[1729024202371,8.6381,153.47,153.44,3.2586]
[1729024203567,5.38,153.47,153.46,3.2583]
[1729024203764,5.38,153.47,153.41,15.64]
[1729024204174,8.6381,153.47,153.44,3.2586]
[1729024204962,5.38,153.48,153.42,15.64]
[1729024206375,8.638,153.48,153.45,3.2584]
[1729024207471,3.2575,153.5,153.47,3.2579]
[1729024207665,5.38,153.49,153.47,3.2579]
[1729024207868,5.38,153.49,153.4,15.64]
[1729024208070,3.258,153.48,153.45,3.2585]
[1729024208278,8.60196492,153.49,153.4,15.64]
[1729024208774,3.2582,153.47,153.44,3.2586]
[1729024209278,3.2582,153.47,153.45,3.2585]
[1729024209775,5.38,153.48,153.46,3.2582]
[1729024210173,5.38,153.48,153.4,15.64]
[1729024210369,3.2584,153.46,153.43,3.2588]
[1729024211572,8.6381,153.48,153.42,3.2591]
[1729024211771,5.38,153.48,153.4,15.64]
[1729024212576,3.2582,153.47,153.44,3.2586]
[1729024214779,5.38,153.48,153.4,15.64]
[1729024215085,3.2583,153.46,153.4,15.64]
[1729024215786,15.64,153.51,153.4,15.64]
[1729024216012,5.38,153.5,153.46,3.2582]
[1729024216283,3.2581,153.47,153.39,1.3925]
[1729024216489,3.2581,153.47,153.45,3.2585]
[1729024216986,5.38,153.5,153.45,3.2585]
[1729024217185,3.258,153.48,153.45,3.2585]
[1729024217386,111.02504343,153.52,153.42,15.64]
[1729024217585,107.6953969,153.52,153.44,15.64]
[1729024217782,113.0753969,153.52,153.46,15.64]
[1729024217981,107.6953969,153.52,153.46,15.64]
[1729024218784,110.9523969,153.52,153.46,15.64]
[1729024219294,107.6953969,153.52,153.46,15.64]
[1729024220496,107.6953969,153.52,153.5,3.2573]
[1729024220785,107.6953969,153.52,153.46,15.64]
[1729024220990,107.6953969,153.52,153.45,9.5157]
[1729024220991,5.38,153.57,153.54,3.2566]
[1729024222687,8.6361,153.57,153.53,3.2566]
[1729024223790,8.6361,153.57,153.54,3.2566]
[1729024224696,5.38,153.57,153.54,10.01]
[1729024224879,15.39,153.59,153.54,10.01]
[1729024225079,3.2559,153.58,153.54,10.01]
[1729024225279,3.2559,153.58,153.55,3.2563]
[1729024225993,13.2659,153.58,153.55,3.2563]
[1729024226395,3.2562,153.56,153.52,11.3302]
[1729024226894,3.2562,153.56,153.53,3.2567]
[1729024228084,10.01,153.6,153.52,1.3202]
[1729024228287,10.01,153.61,153.55,10.01]
[1729024228481,9.7598,153.7,153.61,3.255]
[1729024228482,8.6346,153.64,153.61,3.255]
[1729024228685,15.39,153.64,153.59,10.01]
[1729024228881,15.39,153.64,153.54,5.38]
[1729024229184,13.26928355,153.63,153.58,10.01]
[1729024229802,3.255,153.62,153.56,3.256]
[1729024229994,3.255,153.62,153.54,8.5698955]
[1729024229995,18.88928355,153.63,153.54,5.38]
[1729024230191,15.63,153.61,153.54,5.38]
[1729024230490,15.63,153.59,153.53,1.362]
[1729024230696,15.63,153.57,153.47,2.8236]
[1729024230893,3.2569,153.53,153.49,3.2575]
[1729024231090,15.63,153.55,153.49,3.2575]
[1729024231296,15.63,153.55,153.47,4.223]
[1729024231498,3.2569,153.53,153.49,3.2576]
[1729024231700,15.63,153.55,153.49,3.2576]
[1729024232996,15.63,153.55,153.48,3.2578]
[1729024235301,3.2572,153.52,153.48,3.2578]
[1729024235705,15.63,153.53,153.48,3.2578]
[1729024235997,3.2573,153.51,153.48,3.2578]
[1729024236403,15.63,153.53,153.47,7.4809]
[1729024236706,3.2574,153.5,153.47,6.0878]
[1729024236896,15.63,153.53,153.47,6.0878]
[1729024237403,3.2575,153.5,153.47,6.0878]
[1729024238199,3.2573,153.51,153.47,6.0878]
[1729024238400,15.63,153.53,153.47,6.0878]
[1729024238790,3.2576,153.5,153.43,18.8785342]
[1729024238995,3.2576,153.5,153.41,1.3091]
[1729024238996,15.63,153.51,153.42,8.1064]
[1729024239198,3.2584,153.46,153.42,2.7264]
[1729024239397,15.63,153.47,153.42,2.7264]
[1729024239591,15.63,153.47,153.42,1.3333]
[1729024239902,15.63,153.45,153.37,2.7626]
[1729024240092,15.63,153.45,153.38,3.2598]
[1729024240093,5.38,153.44,153.38,3.2598]
[1729024240297,3.2596,153.41,153.37,1.3695]
[1729024240503,15.63,153.43,153.37,1.3695]
[1729024240895,3.2597,153.4,153.37,1.3695]
[1729024241606,18.94301467,153.43,153.37,1.3695]
[1729024242901,3.2593,153.42,153.37,1.3695]
[1729024243199,15.63,153.41,153.33,1.3931]
[1729024243399,3.2595,153.41,153.33,17.0231]
[1729024243595,15.63,153.43,153.33,17.0231]
[1729024244207,3.2594,153.41,153.33,17.0231]
[1729024244602,15.63,153.43,153.33,17.0231]
[1729024244803,3.2593,153.42,153.38,3.2599]
[1729024247400,18.94115893,153.43,153.38,3.2599]
[1729024247600,3.2594,153.41,153.38,3.2599]
[1729024248010,3.2596,153.4,153.37,3.26]
[1729024249513,3.2596,153.4,153.36,3.2604]
[1729024249706,15.63,153.41,153.33,17.0231]
[1729024249897,3.2599,153.39,153.33,17.0231]
[1729024250097,18.96333333,153.41,153.33,1.3931]
[1729024250407,3.2601,153.38,153.33,1.3931]
[1729024250907,3.2601,153.38,153.34,3.2608]
[1729024251105,3.2603,153.37,153.34,3.2608]
[1729024251503,5.38,153.4,153.34,3.2608]
[1729024251907,3.2601,153.38,153.34,3.2608]
[1729024252204,3.2601,153.38,153.35,3.2605]
[1729024254607,21.01,153.4,153.33,1.3931]
[1729024254810,3.2604,153.37,153.34,3.2608]
[1729024255612,21.01,153.4,153.33,4.654]
[1729024256013,21.01,153.4,153.33,1.3931]
[1729024256204,3.26,153.38,153.34,3.2607]
[1729024256710,3.2604,153.37,153.34,3.2607]
[1729024257906,21.01,153.4,153.33,1.3931]
[1729024258504,3.2601,153.38,153.35,3.2606]
[1729024259713,15.63,153.38,153.3,15.63]
[1729024259914,3.2605,153.36,153.33,3.2609]
[1729024260110,15.63,153.38,153.33,3.2609]
[1729024260519,3.2603,153.37,153.33,3.2609]
[1729024260913,15.63,153.38,153.33,3.2609]
[1729024261316,3.2603,153.37,153.33,3.2609]
[1729024261513,15.63,153.38,153.33,3.2609]
[1729024261913,3.2604,153.37,153.33,3.2609]
[1729024262215,3.2604,153.37,153.3,15.63]
[1729024262517,3.2604,153.37,153.34,3.2607]
[1729024262717,3.2604,153.37,153.3,15.63]
[1729024262718,5.38,153.4,153.29,5.38]
[1729024263011,5.38,153.42,153.34,15.63]
[1729024263211,8.71518869,153.41,153.34,15.63]
[1729024263418,3.2597,153.4,153.34,15.63]
[1729024263819,3.2597,153.4,153.37,3.26]
[1729024264319,21.91729163,153.41,153.36,10.02]
[1729024264617,1.4285,153.45,153.36,10.02]
[1729024264819,13.279,153.43,153.37,10.02]
[1729024265019,6.5296114,153.43,153.4,3.2594]
[1729024265221,10.02,153.42,153.4,3.2594]
[1729024265410,10.02,153.42,153.37,10.02]
[1729024265615,18.6588,153.44,153.39,3.2596]
[1729024265819,8.6388,153.44,153.36,21.03]
[1729024266121,8.6388,153.44,153.37,1.3386]
[1729024266614,8.6388,153.44,153.41,3.2592]
[1729024266818,5.38,153.44,153.41,3.2592]
[1729024267018,3.259,153.43,153.41,3.2592]
[1729024267720,18.9087,153.45,153.42,3.2589]
[1729024267916,18.9087,153.45,153.37,1.3386]
[1729024267917,3.2587,153.45,153.38,17.0733]
[1729024268215,8.6384,153.46,153.43,3.2588]
[1729024268812,8.6384,153.46,153.38,17.0733]
[1729024269215,3.2585,153.45,153.38,17.0733]
[1729024269620,15.65,153.49,153.44,3.2586]
[1729024269809,15.65,153.49,153.42,15.65]
[1729024270014,123.3383598,153.53,153.43,17.0487]
[1729024270323,128.7183598,153.53,153.44,6.7507]
[1729024270526,128.7183598,153.53,153.44,8.0828]
[1729024270711,3.2572,153.52,153.48,3.2577]
[1729024272109,3.2572,153.51,153.48,3.2577]
[1729024272914,3.2571,153.52,153.49,3.2576]
[1729024273522,3.2562,153.56,153.53,3.2567]
[1729024273823,5.38,153.58,153.5,15.65]
[1729024274029,5.38,153.58,153.51,8.0489]
[1729024274323,5.38,153.6,153.51,8.0489]
[1729024274526,15.65,153.61,153.51,9.4638]
[1729024274728,21.03,153.61,153.51,9.4638]
[1729024275028,3.2558,153.58,153.55,3.2562]
[1729024278433,21.03,153.61,153.51,4.0838]
[1729024278729,3.256,153.57,153.54,3.2566]
[1729024279725,3.2557,153.59,153.54,3.2566]
[1729024279931,21.03,153.61,153.51,4.0838]
[1729024280135,3.25244247,153.6,153.51,4.0838]
[1729024280435,3.2558,153.58,153.55,3.2562]
[1729024280831,3.2561,153.57,153.54,3.2564]
[1729024281531,15.65,153.63,153.55,5.38]
[1729024281738,8.60084322,153.64,153.55,5.38]
[1729024281931,21.03,153.64,153.55,5.38]
[1729024282326,3.2551,153.61,153.58,3.2556]
[1729024282532,24.30558131,153.64,153.55,5.38]
[1729024283536,3.2552,153.61,153.58,3.2557]
[1729024285748,3.255,153.62,153.59,3.2554]
[1729024286541,3.255,153.62,153.56,15.65]
[1729024286542,15.65,153.6,153.53,5.38]
[1729024286743,15.65,153.6,153.52,3.28404172]
[1729024286949,15.65,153.6,153.53,5.38]
[1729024287448,3.2556,153.59,153.55,3.2564]
[1729024287649,3.2556,153.59,153.53,5.38]
[1729024288852,3.2556,153.59,153.55,3.2562]
[1729024289049,3.2556,153.59,153.53,5.38]
[1729024289452,3.2554,153.6,153.53,5.38]
[1729024289759,15.65,153.62,153.53,5.38]
[1729024289954,15.65,153.62,153.56,3.256]
[1729024290548,15.65,153.62,153.55,3.2562]
[1729024290747,3.2555,153.6,153.53,5.38]
[1729024291648,3.2555,153.6,153.57,3.2559]
[1729024293049,3.2552,153.61,153.55,3.2562]
[1729024293249,15.65,153.64,153.53,5.38]
[1729024293450,15.65,153.64,153.55,15.65]
[1729024294158,3.255,153.62,153.59,3.2554]
[1729024296255,3.2557,153.59,153.56,8.6161]
[1729024296559,3.2557,153.59,153.56,5.36]
[1729024297054,15.65,153.61,153.56,5.36]
[1729024297265,15.65,153.63,153.56,5.36]
[1729024297467,15.65,153.63,153.57,1.4014]
[1729024297757,3.2552,153.61,153.58,3.2556]
[1729024298461,3.2556,153.59,153.57,1.4014]
[1729024298758,3.2556,153.59,153.51,8.1024]
[1729024298759,15.65,153.59,153.51,8.1024]
[1729024298953,5.36,153.62,153.51,2.7424]
[1729024298954,15.65,153.57,153.51,2.7424]
[1729024299151,15.65,153.57,153.51,8.1024]
[1729024299553,15.65,153.57,153.51,4.5846]
[1729024299746,15.65,153.57,153.51,1.3275]
[1729024299960,3.2574,153.51,153.47,8.6179]
[1729024300158,3.2574,153.51,153.47,5.36]
[1729024301452,18.907,153.53,153.47,5.36]
[1729024301763,15.65,153.53,153.47,5.36]
[1729024302557,3.2571,153.52,153.49,3.2575]
[1729024303057,3.2567,153.54,153.51,3.2572]
[1729024303362,15.65,153.57,153.47,21.01]
[1729024303762,3.2564,153.55,153.47,21.01]
[1729024304356,3.2564,153.55,153.49,15.65]
[1729024304963,3.2564,153.55,153.51,3.2571]
[1729024306356,3.2567,153.54,153.51,3.2571]
[1729024306763,18.95759708,153.55,153.46,8.1718]
[1729024306965,15.65,153.53,153.48,3.2578]
[1729024307162,15.65,153.53,153.46,1.4014]
[1729024307362,15.65,153.51,153.45,1.3593]
[1729024307767,3.2578,153.49,153.45,1.3593]
[1729024308866,3.2578,153.49,153.46,3.2583]
[1729024309363,3.2579,153.48,153.45,1.3593]
[1729024309563,15.65,153.53,153.45,1.3593]
[1729024310163,18.85806987,153.53,153.47,3.258]
[1729024310474,15.65,153.53,153.47,3.258]
[1729024310771,15.65,153.53,153.45,6.7193]
[1729024310976,3.2574,153.51,153.48,3.2577]
[1729024311782,3.2579,153.48,153.45,9.9776]
[1729024312471,21.01,153.51,153.45,6.7193]
[1729024312679,3.2577,153.49,153.46,3.2582]
[1729024312971,21.01,153.51,153.45,6.7193]
[1729024313166,5.36,153.51,153.45,6.7193]
[1729024313365,15.65,153.53,153.45,6.7193]
[1729024313665,5.36,153.54,153.45,22.3693]
[1729024313965,8.6168,153.54,153.5,3.2573]
[1729024314163,5.36,153.54,153.5,3.2573]
[1729024314664,3.2569,153.53,153.5,3.2573]
[1729024315772,5.36,153.54,153.47,15.65]
[1729024316073,15.65,153.53,153.45,1.3593]
[1729024316371,15.65,153.51,153.43,5.36]
[1729024316559,15.65,153.51,153.42,6.7134]
[1729024316769,15.65,153.49,153.41,1.3597]
[1729024316968,15.65,153.49,153.42,3.2591]
[1729024318074,3.2584,153.46,153.42,3.2591]
[1729024318269,3.2584,153.46,153.43,3.2588]
[1729024319179,15.65,153.49,153.43,3.2588]
[1729024319477,15.65,153.49,153.41,6.7197]
[1729024320974,3.2582,153.47,153.41,6.7197]
[1729024321175,15.65,153.49,153.41,6.7197]
[1729024322474,3.2583,153.46,153.43,3.2589]
[1729024322668,3.2583,153.46,153.41,6.7197]
[1729024322669,15.65,153.49,153.41,6.7197]
[1729024323069,15.65,153.49,153.4,1.438]
[1729024323274,15.65,153.44,153.37,8.0724]
[1729024323575,15.65,153.44,153.36,5.36]
[1729024323776,15.65,153.44,153.33,17.0459]
[1729024323777,15.65,153.42,153.33,1.3959]
[1729024324078,3.2602,153.38,153.34,8.6207]
[1729024324279,15.65,153.4,153.34,5.36]
[1729024324473,15.65,153.4,153.35,3.2605]
[1729024325065,3.2597,153.4,153.36,3.2603]
[1729024325381,21.01,153.42,153.34,5.36]
[1729024325766,3.2599,153.39,153.35,3.2605]
[1729024326281,3.2599,153.39,153.35,3.2606]
[1729024326873,21.01,153.42,153.35,3.2606]
[1729024327076,15.65,153.38,153.22,70.4]
[1729024327275,15.65,153.38,153.31,3.2615]
[1729024327680,21.01,153.38,153.31,3.2615]
[1729024328083,3.2604,153.36,153.32,3.2612]
[1729024328382,5.36,153.38,153.31,15.65]
[1729024329381,3.2602,153.37,153.33,3.2609]
[1729024330786,5.36,153.38,153.31,15.65]
[1729024330970,5.36,153.38,153.29,21.01]
[1729024331469,3.2606,153.36,153.32,3.2611]
[1729024332682,5.36,153.38,153.32,3.2611]
[1729024332890,3.2605,153.36,153.32,3.2611]
[1729024334684,21.01,153.38,153.29,21.01]
[1729024334882,15.65,153.4,153.31,15.65]
[1729024335072,5.36,153.39,153.31,15.65]
[1729024335472,5.36,153.39,153.35,3.2605]
[1729024335678,5.36,153.39,153.31,15.65]
[1729024335884,3.2605,153.36,153.32,3.2611]
[1729024336384,3.2605,153.36,153.3,1.4163]
[1729024336585,3.2609,153.34,153.31,3.2615]
[1729024336777,15.65,153.38,153.31,3.2615]
[1729024337174,3.2608,153.35,153.31,3.2615]
[1729024337379,15.65,153.38,153.31,3.2615]
[1729024337888,3.2608,153.35,153.31,3.2615]
[1729024338093,3.2608,153.35,153.32,3.2612]
[1729024339085,3.2618,153.3,153.27,6.0288]
[1729024339386,3.2618,153.3,153.21,24.20328687]
[1729024339387,18.95680856,153.3,153.21,24.20328687]
[1729024339587,15.65,153.3,153.21,1.4069]
[1729024339790,3.2629,153.25,153.21,1.4069]
[1729024339984,18.85731398,153.3,153.21,1.4069]
[1729024340398,15.65,153.28,153.16,5.36]
[1729024340689,15.65,153.3,153.19,15.65]
[1729024340881,3.2621,153.28,153.24,3.2628]
[1729024341278,3.22442718,153.29,153.21,15.65]
[1729024341480,3.2627,153.26,153.22,3.2634]
[1729024341684,3.32495593,153.29,153.21,15.65]
[1729024341885,5.36,153.31,153.21,15.65]
[1729024342086,3.2625,153.27,153.23,3.2631]
[1729024342389,15.65,153.3,153.2,21.01]
[1729024342590,3.2627,153.26,153.22,3.2633]
[1729024343587,3.2628,153.25,153.21,3.2635]
[1729024343791,15.65,153.3,153.2,21.01]
[1729024344487,21.01,153.32,153.22,15.65]
[1729024344684,15.65,153.32,153.23,2.7753]
[1729024344878,5.36,153.32,153.27,15.65]
[1729024345181,116.38475365,153.35,153.27,15.65]
[1729024345584,3.2613,153.32,153.27,15.65]
[1729024345984,8.56931509,153.35,153.27,15.65]
[1729024346180,3.2616,153.31,153.27,18.9122]
[1729024346790,3.2616,153.31,153.27,3.2622]
[1729024347190,3.2616,153.31,153.28,3.2621]
[1729024350197,3.2616,153.31,153.27,3.2623]
[1729024350899,15.65,153.3,153.23,2.7753]
[1729024351490,15.65,153.3,153.23,6.0385]
[1729024351491,3.2625,153.27,153.23,6.0385]
[1729024351698,3.2625,153.27,153.23,2.7753]
[1729024352096,3.2623,153.28,153.24,3.263]
[1729024352904,3.2623,153.27,153.24,3.263]
[1729024354693,3.2622,153.28,153.24,3.263]
[1729024354899,15.65,153.3,153.23,6.0384]
[1729024355093,3.2625,153.27,153.23,6.0384]
[1729024355405,3.2625,153.27,153.23,2.7753]
[1729024356299,15.65,153.3,153.23,2.7753]
[1729024356998,3.2624,153.27,153.24,3.2629]
[1729024357194,15.65,153.28,153.19,15.65]
[1729024357389,3.255776,153.27,153.19,5.36]
[1729024357585,15.65,153.26,153.21,3.2634]
[1729024357797,18.91328155,153.26,153.18,5.36]
[1729024358597,18.91328155,153.26,153.17,8.1505]
[1729024358798,15.65,153.26,153.17,8.1505]
[1729024359305,18.90349171,153.26,153.17,8.1505]
[1729024359503,3.2634,153.22,153.19,3.2639]
[1729024360194,3.2631,153.24,153.2,3.2637]
[1729024360389,18.90349171,153.26,153.2,3.2637]
[1729024361502,3.2632,153.23,153.18,3.2641]
[1729024361689,3.2632,153.23,153.17,8.1505]
[1729024362501,3.2632,153.23,153.2,3.2638]
[1729024362697,3.2631,153.24,153.2,3.2638]
[1729024363799,3.2631,153.24,153.17,8.1505]
[1729024364002,3.2627,153.26,153.17,23.8005]